fUSD/lending_fUSD_20240403
["ID","MTS","AMOUNT","RATE_DAILY","PERIOD"]
[321432180,1712184667803,-500.0,0.00055068,2]
[321432181,1712184667813,-500.0,0.00055068,120]
[321432182,1712184667822,-704.16,0.00055068,120]
[321432183,1712184667833,-500.0,0.00055068,120]
[321432184,1712184667843,-500.0,0.00055068,120]
[321432185,1712184667853,-500.0,0.00055068,120]
[321432186,1712184667863,-508.41464968,0.00055068,120]
[321432187,1712184667872,-500.0,0.00055068,120]
[321432188,1712184667881,-500.0,0.00055068,120]
[321432189,1712184667891,-520.19,0.00055068,120]
[321432190,1712184667900,-574.05,0.00055068,120]
[321432191,1712184667910,-500.0,0.00055068,120]
[321432192,1712184667921,-504.74,0.00055068,120]
[321432193,1712184667931,-511.41582246,0.00055068,120]
[321432194,1712184667940,-683.55,0.00055068,120]
[321432195,1712184667949,-509.05729146,0.00055068,120]
[321432196,1712184667959,-520.12048537,0.00055068,120]
[321432197,1712184667969,-500.0,0.00055068,120]
[321432198,1712184667980,-500.0,0.00055068,120]
[321432199,1712184667989,-500.0,0.00055068,120]
[321432200,1712184667998,-500.0,0.00055068,120]
[321432201,1712184668008,-514.46,0.00055068,120]
[321432202,1712184668016,-500.0,0.00055068,120]
[321432203,1712184668026,-498.89195099,0.00055068,120]
[321432204,1712184668036,-500.0,0.00055068,120]
[321432205,1712184668045,-1220.51,0.00055068,120]
[321432206,1712184668055,-500.0,0.00055068,120]
[321432207,1712184668064,-631.33,0.00055068,120]
[321432208,1712184668074,-507.48438835,0.00055068,120]
[321432209,1712184668083,-500.0,0.00055068,120]
[321432210,1712184668092,-500.0,0.00055068,120]
[321432211,1712184668103,-500.0,0.00055068,120]
[321432212,1712184668112,-500.0,0.00055068,2]
[321432213,1712184668121,-500.0,0.00055068,120]
[321432214,1712184668130,-1170.06,0.00055068,120]
[321432215,1712184668140,-791.38,0.00055068,120]
[321432216,1712184668150,-500.0,0.00055068,2]
[321432217,1712184668158,-1673.95,0.00055068,120]
[321432218,1712184668169,-1613.0,0.00055068,2]
[321432219,1712184668179,-973.42,0.00055068,120]
[321432220,1712184668188,-531.89111458,0.00055068,120]
[321432221,1712184668197,-374.62451444,0.00055068,2]
[321432222,1712184668208,-500.0,0.00055068,120]
[321432223,1712184668217,-625.0,0.00055068,120]
[321432224,1712184668227,-1220.19,0.00055068,120]
[321432225,1712184668236,-500.0,0.00055068,120]
[321432226,1712184668245,-500.0,0.00055068,120]
[321432227,1712184668254,-500.0,0.00055068,120]
[321432228,1712184668263,-500.0,0.00055068,120]
[321432229,1712184668273,-1009.55,0.00055068,120]
[321432230,1712184668283,-521.29945489,0.00055068,120]
[321432231,1712184668294,-500.0,0.00055068,120]
[321432232,1712184668304,-1121.83,0.00055068,120]
[321432233,1712184668314,-500.0,0.00055068,120]
[321432234,1712184668323,-935.91,0.00055068,120]
[321432235,1712184668333,-884.75,0.00055068,120]
[321432236,1712184668342,-500.0,0.00055068,120]
[321432237,1712184668353,-500.0,0.00055068,120]
[321432238,1712184668362,-1215.44,0.00055068,120]
[321432239,1712184668371,-500.0,0.00055068,120]
[321432240,1712184668382,-553.5,0.00055068,120]
[321432241,1712184668392,-500.0,0.00055068,30]
[321432242,1712184668402,-510.25363535,0.00055068,120]
[321432243,1712184668411,-854.62,0.00055068,120]
[321432244,1712184668423,-535.38733274,0.00055068,120]
[321432245,1712184668432,-543.10563866,0.00055068,120]
[321432246,1712184668441,-500.0,0.00055068,120]
[321432247,1712184668450,-1076.91,0.00055068,120]
[321432248,1712184668460,-500.0,0.00055068,120]
[321432249,1712184668469,-855.27,0.00055068,120]
[321432250,1712184668481,-500.0,0.00055068,120]
[321432251,1712184668490,-611.88,0.00055068,120]
[321432252,1712184668499,-1514.0,0.00055068,120]
[321432253,1712184668509,-2461.51,0.00055068,120]
[321432254,1712184668517,-643.84055473,0.00055068,120]
[321432255,1712184668527,-500.0,0.00055068,120]
[321432256,1712184668536,-1215.43,0.00055068,120]
[321432257,1712184668545,-897.02,0.00055068,120]
[321432258,1712184668554,-500.0,0.00055068,120]
[321432259,1712184668564,-507.28304077,0.00055068,120]
[321432260,1712184668573,-500.0,0.00055068,120]
[321432261,1712184668582,-500.0,0.00055068,120]
[321432262,1712184668591,-500.0,0.00055068,120]
[321432263,1712184668600,-865.98,0.00055068,120]
[321432264,1712184668610,-673.34,0.00055068,120]
[321432265,1712184668620,-949.53,0.00055068,120]
[321432266,1712184668630,-500.0,0.00055068,120]
[321432267,1712184668639,-500.0,0.00055068,120]
[321432268,1712184668648,-500.0,0.00055068,120]
[321432269,1712184668657,-500.0,0.00055068,120]
[321432270,1712184668668,-605.37200751,0.00055068,120]
[321432271,1712184668677,-500.0,0.00055068,120]
[321432272,1712184668686,-500.0,0.00055068,80]
[321432273,1712184668695,-500.0,0.00055068,120]
[321432274,1712184668704,-302.85171154,0.00055068,120]
[321432275,1712184668714,-1339.58,0.00055068,120]
[321432276,1712184668723,-965.12,0.00055068,120]
[321432277,1712184668732,-500.0,0.00055068,120]
[321432278,1712184668742,-500.0,0.00055068,120]
[321432279,1712184668752,-500.0,0.00055068,120]
[321432280,1712184668762,-982.66,0.00055068,120]
[321432281,1712184668772,-500.0,0.00055068,120]
[321432282,1712184668781,-1058.87,0.00055068,120]
[321432283,1712184668793,-1219.82,0.00055068,120]
[321432284,1712184668802,-500.0,0.00055068,120]
[321432285,1712184668811,-289.37212745,0.00055068,120]
[321432286,1712184668822,-1691.43,0.00055068,120]
[321432287,1712184668831,-531.76,0.00055068,120]
[321432288,1712184668840,-500.0,0.00055068,120]
[321432289,1712184668849,-1064.18,0.00055068,120]
[321432290,1712184668865,-1053.04,0.00055068,120]
[321432291,1712184668874,-526.13017873,0.00055068,120]
[321432292,1712184668890,-1338.73,0.00055068,120]
[321432293,1712184668903,-525.45438206,0.00055068,120]
[321432294,1712184668914,-1559.55,0.00055068,120]
[321432295,1712184668924,-500.0,0.00055068,120]
[321432296,1712184668933,-1080.87,0.00055068,120]
[321432297,1712184668942,-500.0,0.00055068,120]
[321432298,1712184668968,-500.0,0.00055068,120]
[321432299,1712184668981,-500.0,0.00055068,120]
[321432300,1712184668997,-1176.41,0.00055068,120]
[321432301,1712184669020,-500.0,0.00055068,120]
[321432302,1712184669032,-1711.74,0.00055068,120]
[321432303,1712184669049,-500.0,0.00055068,120]
[321432304,1712184669059,-1092.2,0.00055068,120]
[321432305,1712184669069,-500.0,0.00055068,120]
[321432306,1712184669079,-500.0,0.00055068,120]
[321432307,1712184669098,-500.0,0.00055068,120]
[321432308,1712184669108,-1035.85,0.00055068,120]
[321432309,1712184669117,-500.0,0.00055068,120]
[321432310,1712184669127,-500.0,0.00055068,120]
[321432311,1712184669137,-516.97909885,0.00055068,60]
[321432312,1712184669149,-500.0,0.00055068,120]
[321432313,1712184669168,-876.34,0.00055068,120]
[321432314,1712184669200,-1270.06,0.00055068,120]
[321432315,1712184669222,-500.0,0.00055068,120]
[321432316,1712184669234,-1220.58,0.00055068,120]
[321432317,1712184669256,-500.0,0.00055068,120]
[321432318,1712184669266,-1494.41,0.00055068,120]
[321432319,1712184669278,-500.0,0.00055068,120]
[321432320,1712184669292,-1226.04,0.00055068,120]
[321432321,1712184669301,-500.0,0.00055068,120]
[321432322,1712184669316,-500.0,0.00055068,120]
[321432323,1712184669330,-658.04,0.00055068,120]
[321432324,1712184669340,-715.45,0.00055068,120]
[321432325,1712184669350,-501.4736451,0.00055068,120]
[321432326,1712184669360,-500.0,0.00055068,120]
[321432327,1712184669370,-751.45,0.00055068,120]
[321432328,1712184669382,-1113.91,0.00055068,120]
[321432329,1712184669393,-500.0,0.00055068,120]
[321432330,1712184669404,-499.93966774,0.00055068,120]
[321432331,1712184669416,-500.0,0.00055068,120]
[321432332,1712184669425,-516.96321479,0.00055068,120]
[321432333,1712184669435,-1753.92,0.00055068,120]
[321432334,1712184669444,-518.05015587,0.00055068,120]
[321432335,1712184669454,-500.0,0.00055068,120]
[321432336,1712184669463,-500.0,0.00055068,120]
[321432337,1712184669474,-500.0,0.00055068,120]
[321432338,1712184669483,-435.61618419,0.00055068,120]
[321432339,1712184669506,-500.0,0.00055068,120]
[321432340,1712184669538,-392.45,0.00055068,120]
[321432341,1712184669551,-500.0,0.00055068,120]
[321432342,1712184669562,-500.0,0.00055068,120]
[321432343,1712184669574,-880.91,0.00055068,120]
[321432344,1712184669584,-500.0,0.00055068,120]
[321432345,1712184669595,-925.28,0.00055068,120]
[321432346,1712184669607,-500.0,0.00055068,2]
[321432347,1712184669622,-500.0,0.00055068,120]
[321432348,1712184669635,-500.0,0.00055068,120]
[321432349,1712184669645,-505.77143171,0.00055068,120]
[321432350,1712184669686,-500.0,0.00055068,120]
[321432351,1712184669703,-500.0,0.00055068,120]
[321432352,1712184669716,-500.0,0.00055068,120]
[321432353,1712184669728,-500.0,0.00055068,120]
[321432354,1712184669738,-500.0,0.00055068,120]
[321432355,1712184669748,-938.87,0.00055068,120]
[321432356,1712184669757,-500.0,0.00055068,120]
[321432357,1712184669767,-809.69,0.00055068,120]
[321432358,1712184669787,-820.25,0.00055068,120]
[321432359,1712184669797,-613.92,0.00055068,120]
[321432360,1712184669806,-500.0,0.00055068,120]
[321432361,1712184669819,-500.0,0.00055068,120]
[321432362,1712184669847,-1528.39,0.00055068,120]
[321432363,1712184669859,-500.0,0.00055068,120]
[321432364,1712184669869,-1175.94,0.00055068,120]
[321432365,1712184669881,-1868.47,0.00055068,120]
[321432366,1712184669892,-734.72,0.00055068,120]
[321432367,1712184669902,-500.0,0.00055068,120]
[321432368,1712184669916,-500.0,0.00055068,120]
[321432369,1712184669926,-1000.0,0.00055068,120]
[321432370,1712184669935,-675.22,0.00055068,120]
[321432371,1712184669945,-791.95,0.00055068,120]
[321432372,1712184669954,-504.16728703,0.00055068,120]
[321432373,1712184669964,-500.0,0.00055068,120]
[321432374,1712184669973,-1078.58,0.00055068,120]
[321432375,1712184669983,-1374.06,0.00055068,120]
[321432376,1712184669992,-500.0,0.00055068,120]
[321432377,1712184670002,-500.0,0.00055068,120]
[321432378,1712184670011,-854.0,0.00055068,120]
[321432379,1712184670020,-500.0,0.00055068,120]
[321432380,1712184670030,-500.0,0.00055068,120]
[321432381,1712184670039,-500.0,0.00055068,120]
[321432382,1712184670048,-670.32,0.00055068,120]
[321432383,1712184670058,-500.0,0.00055068,120]
[321432384,1712184670067,-500.0,0.00055068,120]
[321432385,1712184670077,-1170.92,0.00055068,120]
[321432386,1712184670087,-1248.45,0.00055068,120]
[321432387,1712184670096,-1117.67,0.00055068,30]
[321432388,1712184670106,-600.0,0.00055068,2]
[321432389,1712184670116,-500.0,0.00055068,120]
[321432390,1712184670126,-675.44,0.00055068,120]
[321432391,1712184670136,-500.0,0.00055068,120]
[321432392,1712184670145,-500.0,0.00055068,120]
[321432393,1712184670155,-585.36,0.00055068,120]
[321432394,1712184670167,-517.56,0.00055068,120]
[321432395,1712184670177,-1079.11,0.00055068,120]
[321432396,1712184670187,-1677.54,0.00055068,120]
[321432397,1712184670196,-500.0,0.00055068,120]
[321432398,1712184670206,-500.0,0.00055068,120]
[321432399,1712184670215,-500.0,0.00055068,120]
[321432400,1712184670225,-808.59,0.00055068,120]
[321432401,1712184670234,-1135.01,0.00055068,120]
[321432402,1712184670244,-408.03685875,0.00055068,120]
[321432403,1712184670255,-480.7072807,0.00055068,120]
[321432404,1712184670264,-555.42,0.00055068,120]
[321432405,1712184670274,-843.85,0.00055068,120]
[321432406,1712184670284,-500.0,0.00055068,120]
[321432407,1712184670296,-826.77,0.00055068,120]
[321432408,1712184670306,-500.0,0.00055068,120]
[321432409,1712184670315,-500.0,0.00055068,120]
[321432410,1712184670324,-1259.94,0.00055068,120]
[321432411,1712184670334,-500.0,0.00055068,120]
[321432412,1712184670345,-1196.34,0.00055068,120]
[321432413,1712184670354,-500.0,0.00055068,120]
[321432414,1712184670364,-547.47714468,0.00055068,120]
[321432415,1712184670374,-500.0,0.00055068,120]
[321432416,1712184670383,-1227.92,0.00055068,120]
[321432417,1712184670393,-1112.56,0.00055068,120]
[321432418,1712184670402,-1264.95,0.00055068,120]
[321432419,1712184670412,-500.0,0.00055068,120]
[321432420,1712184670423,-500.0,0.00055068,120]
[321432421,1712184670432,-500.0,0.00055068,120]
[321432422,1712184670442,-500.0,0.00055068,120]
[321432423,1712184670451,-1166.52,0.00055068,120]
[321432424,1712184670460,-500.0,0.00055068,2]
[321432425,1712184670470,-1657.99,0.00055068,30]
[321432426,1712184670479,-500.0,0.00055068,120]
[321432427,1712184670489,-1387.24,0.00055068,120]
[321432428,1712184670498,-500.0,0.00055068,120]
[321432429,1712184670507,-500.0,0.00055068,120]
[321432430,1712184670516,-589.36944926,0.00055068,120]
[321432431,1712184670525,-176.87542393,0.00055068,120]
[321432432,1712184670534,-511.24,0.00055068,120]
[321432433,1712184670543,-1149.21,0.00055068,120]
[321432434,1712184670553,-500.0,0.00055068,120]
[321432435,1712184670562,-1077.9,0.00055068,120]
[321432436,1712184670572,-835.03,0.00055068,120]
[321432437,1712184670582,-1009.09,0.00055068,60]
[321432438,1712184670592,-500.0,0.00055068,120]
[321432439,1712184670603,-749.89,0.00055068,120]
[321432440,1712184670613,-831.64,0.00055068,120]
[321432441,1712184670624,-1554.15,0.00055068,120]
[321432442,1712184670634,-1288.29,0.00055068,120]
[321432443,1712184670644,-500.0,0.00055068,120]
[321432444,1712184670654,-500.0,0.00055068,120]
[321432445,1712184670665,-539.18,0.00055068,120]
[321432446,1712184670676,-1597.03,0.00055068,120]
[321432447,1712184670877,-958.86,0.00055068,120]
[321432448,1712184670888,-500.0,0.00055068,120]
[321432449,1712184670897,-1543.8,0.00055068,120]
[321432450,1712184670906,-533.57913989,0.00055068,120]
[321432451,1712184670917,-500.0,0.00055068,120]
[321432452,1712184670926,-500.0,0.00055068,120]
[321432453,1712184670935,-926.27,0.00055068,120]
[321432454,1712184670945,-500.0,0.00055068,120]
[321432455,1712184670954,-500.0,0.00055068,120]
[321432456,1712184670964,-799.72,0.00055068,120]
[321432457,1712184670973,-1275.42,0.00055068,120]
[321432458,1712184670983,-510.42296223,0.00055068,120]
[321432459,1712184670992,-500.0,0.00055068,120]
[321432460,1712184671002,-500.0,0.00055068,120]
[321432461,1712184671012,-500.0,0.00055068,120]
[321432462,1712184671021,-1581.02,0.00055068,120]
[321432463,1712184671030,-503.64231859,0.00055068,120]
[321432464,1712184671040,-500.0,0.00055068,120]
[321432465,1712184671049,-500.0,0.00055068,120]
[321432466,1712184671058,-500.0,0.00055068,120]
[321432467,1712184671068,-500.0,0.00055068,120]
[321432468,1712184671077,-506.4479022,0.00055068,120]
[321432469,1712184671086,-386.10521963,0.00055068,120]
[321432470,1712184671096,-1179.39,0.00055068,120]
[321432471,1712184671105,-500.0,0.00055068,120]
[321432472,1712184671115,-500.0,0.00055068,120]
[321432473,1712184671124,-1336.3,0.00055068,120]
[321432474,1712184671133,-500.0,0.00055068,120]
[321432475,1712184671142,-500.0,0.00055068,120]
[321432476,1712184671152,-566.29,0.00055068,120]
[321432477,1712184671161,-1872.46,0.00055068,120]
[321432478,1712184671173,-500.0,0.00055068,120]
[321432479,1712184671183,-659.49,0.00055068,120]
[321432480,1712184671192,-985.34,0.00055068,120]
[321432481,1712184671202,-500.0,0.00055068,120]
[321432482,1712184671212,-503.8700193,0.00055068,120]
[321432483,1712184671222,-508.64,0.00055068,120]
[321432484,1712184671231,-1702.42,0.00055068,120]
[321432485,1712184671241,-1258.58,0.00055068,120]
[321432486,1712184671251,-500.0,0.00055068,120]
[321432487,1712184671260,-705.27,0.00055068,120]
[321432488,1712184671270,-624.31,0.00055068,120]
[321432489,1712184671279,-500.0,0.00055068,120]
[321432490,1712184671291,-500.0,0.00055068,120]
[321432491,1712184671301,-633.42,0.00055068,120]
[321432492,1712184671311,-500.0,0.00055068,120]
[321432493,1712184671321,-989.68,0.00055068,120]
[321432494,1712184671330,-337.6990871,0.00055068,120]
[321432495,1712184671339,-500.0,0.00055068,120]
[321432496,1712184671349,-500.0,0.00055068,120]
[321432497,1712184671358,-543.82166699,0.00055068,120]
[321432498,1712184671367,-500.0,0.00055068,120]
[321432499,1712184671376,-740.22,0.00055068,120]
[321432500,1712184671388,-1612.79,0.00055068,120]
[321432501,1712184671398,-500.0,0.00055068,120]
[321432502,1712184671407,-500.0,0.00055068,120]
[321432503,1712184671418,-500.0,0.00055068,120]
[321432504,1712184671428,-618.89,0.00055068,120]
[321432505,1712184671437,-500.0,0.00055068,120]
[321432506,1712184671447,-500.0,0.00055068,120]
[321432507,1712184671457,-705.88,0.00055068,120]
[321432508,1712184671467,-513.28,0.00055068,120]
[321432509,1712184671476,-522.19203692,0.00055068,120]
[321432510,1712184671486,-665.67,0.00055068,120]
[321432511,1712184671495,-500.0,0.00055068,120]
[321432512,1712184671505,-500.0,0.00055068,120]
[321432513,1712184671514,-618.99941599,0.00055068,120]
[321432514,1712184671524,-500.0,0.00055068,120]
[321432515,1712184671533,-500.0,0.00055068,120]
[321432516,1712184671542,-598.78,0.00055068,120]
[321432517,1712184671551,-500.0,0.00055068,120]
[321432518,1712184671560,-512.4378938,0.00055068,120]
[321432519,1712184671569,-500.0,0.00055068,120]
[321432520,1712184671578,-2000.0,0.00055068,30]
[321432521,1712184671588,-572.56782207,0.00055068,120]
[321432522,1712184671598,-500.0,0.00055068,120]
[321432523,1712184671607,-624.62,0.00055068,120]
[321432524,1712184671616,-500.0,0.00055068,120]
[321432525,1712184671626,-500.0,0.00055068,120]
[321432526,1712184671636,-500.0,0.00055068,120]
[321432527,1712184671645,-500.0,0.00055068,120]
[321432528,1712184671655,-2828.46,0.00055068,120]
[321432529,1712184671665,-218.53736046,0.00055068,120]
[321432530,1712184671675,-500.0,0.00055068,120]
[321432531,1712184671684,-500.0,0.00055068,120]
[321432532,1712184671695,-500.0,0.00055068,120]
[321432533,1712184671704,-500.0,0.00055068,120]
[321432534,1712184671714,-651.98,0.00055068,120]
[321432535,1712184671723,-500.0,0.00055068,120]
[321432536,1712184671733,-500.0,0.00055068,120]
[321432537,1712184671743,-500.0,0.00055068,120]
[321432538,1712184671752,-2396.76,0.00055068,120]
[321432539,1712184671761,-500.0,0.00055068,120]
[321432540,1712184671772,-966.12,0.00055068,120]
[321432541,1712184671781,-500.0,0.00055068,120]
[321432542,1712184671790,-562.84,0.00055068,120]
[321432543,1712184671800,-586.8,0.00055068,120]
[321432544,1712184671810,-500.0,0.00055068,120]
[321432545,1712184671820,-500.0,0.00055068,120]
[321432546,1712184671830,-500.0,0.00055068,120]
[321432547,1712184671840,-500.0,0.00055068,120]
[321432548,1712184671850,-1000.0,0.00055068,30]
[321432549,1712184671859,-592.63,0.00055068,120]
[321432550,1712184671868,-781.02,0.00055068,120]
[321432551,1712184671878,-1447.25,0.00055068,120]
[321432552,1712184671887,-500.0,0.00055068,120]
[321432553,1712184671897,-759.64,0.00055068,120]
[321432554,1712184671906,-607.97,0.00055068,120]
[321432555,1712184671916,-500.0,0.00055068,120]
[321432556,1712184671925,-5068.01,0.00055068,120]
[321432557,1712184671934,-2409.69,0.00055068,120]
[321432558,1712184671943,-544.8439429,0.00055068,120]
[321432559,1712184671952,-511.4,0.00055068,120]
[321432560,1712184671961,-500.0,0.00055068,120]
[321432561,1712184671970,-590.49,0.00055068,120]
[321432562,1712184671979,-500.0,0.00055068,120]
[321432563,1712184671988,-500.0,0.00055068,120]
[321432564,1712184671997,-500.0,0.00055068,120]
[321432565,1712184672007,-5517.64,0.00055068,120]
[321432566,1712184672017,-612.67,0.00055068,120]
[321432567,1712184672026,-4811.26,0.00055068,120]
[321432568,1712184672036,-6356.26,0.00055068,120]
[321432569,1712184672045,-515.42406241,0.00055068,120]
[321432570,1712184672055,-983.51,0.00055068,120]
[321432571,1712184672064,-500.0,0.00055068,120]
[321432572,1712184672074,-500.0,0.00055068,120]
[321432573,1712184672083,-500.0,0.00055068,120]
[321432574,1712184672092,-625.63,0.00055068,120]
[321432575,1712184672102,-509.58466675,0.00055068,120]
[321432576,1712184672111,-1811.47,0.00055068,120]
[321432577,1712184672121,-500.0,0.00055068,120]
[321432578,1712184672130,-500.0,0.00055068,120]
[321432579,1712184672140,-550.62622301,0.00055068,120]
[321432580,1712184672149,-5199.26,0.00055068,120]
[321432581,1712184672158,-1633.77,0.00055068,120]
[321432582,1712184672168,-519.01344527,0.00055068,120]
[321432583,1712184672178,-500.0,0.00055068,120]
[321432584,1712184672188,-500.0,0.00055068,120]
[321432585,1712184672198,-500.0,0.00055068,120]
[321432586,1712184672208,-8574.73,0.00055068,120]
[321432587,1712184672217,-500.0,0.00055068,120]
[321432588,1712184672226,-515.24969627,0.00055068,120]
[321432589,1712184672235,-500.0,0.00055068,120]
[321432590,1712184672245,-500.0,0.00055068,120]
[321432591,1712184672255,-566.36,0.00055068,120]
[321432592,1712184672265,-500.0,0.00055068,120]
[321432593,1712184672274,-1264.03,0.00055068,120]
[321432594,1712184672288,-12173.89,0.00055068,120]
[321432595,1712184672297,-828.35,0.00055068,120]
[321432596,1712184672308,-523.71125148,0.00055068,120]
[321432597,1712184672318,-1518.73,0.00055068,120]
[321432598,1712184672328,-500.0,0.00055068,120]
[321432599,1712184672338,-500.0,0.00055068,120]
[321432600,1712184672348,-633.39,0.00055068,120]
[321432601,1712184672358,-527.73850559,0.00055068,120]
[321432602,1712184672369,-776.16,0.00055068,120]
[321432603,1712184672379,-4668.01,0.00055068,120]
[321432604,1712184672390,-3777.44,0.00055068,120]
[321432605,1712184672399,-500.0,0.00055068,120]
[321432606,1712184672408,-500.0,0.00055068,120]
[321432607,1712184672419,-642.8,0.00055068,120]
[321432608,1712184672428,-512.7,0.00055068,120]
[321432609,1712184672438,-1763.3,0.00055068,7]
[321432610,1712184672449,-649.8,0.00055068,120]
[321432611,1712184672459,-3118.27,0.00055068,120]
[321432612,1712184672469,-509.05771683,0.00055068,120]
[321432613,1712184672478,-500.0,0.00055068,120]
[321432614,1712184672488,-500.0,0.00055068,120]
[321432615,1712184672498,-1076.71,0.00055068,120]
[321432616,1712184672507,-500.0,0.00055068,120]
[321432617,1712184672517,-510.27,0.00055068,120]
[321432618,1712184672526,-1500.1,0.00055068,120]
[321432619,1712184672536,-1139.47,0.00055068,120]
[321432620,1712184672546,-500.0,0.00055068,120]
[321432621,1712184672556,-9956.43,0.00055068,120]
[321432622,1712184672566,-500.0,0.00055068,120]
[321432623,1712184672576,-500.0,0.00055068,120]
[321432624,1712184672586,-550.87,0.00055068,120]
[321432625,1712184672596,-2295.65,0.00055068,120]
[321432626,1712184672605,-500.0,0.00055068,120]
[321432627,1712184672614,-500.0,0.00055068,120]
[321432628,1712184672624,-1199.55,0.00055068,120]
[321432629,1712184672634,-500.0,0.00055068,120]
[321432630,1712184672643,-1294.81,0.00055068,120]
[321432631,1712184672654,-626.17,0.00055068,120]
[321432632,1712184672665,-1754.37,0.00055068,120]
[321432633,1712184672674,-1823.5,0.00055068,120]
[321432634,1712184672684,-500.0,0.00055068,120]
[321432635,1712184672693,-500.0,0.00055068,120]
[321432636,1712184672703,-8111.95,0.00055068,120]
[321432637,1712184672713,-858.08,0.00055068,120]
[321432638,1712184672723,-6076.91,0.00055068,120]
[321432639,1712184672732,-510.05363765,0.00055068,120]
[321432640,1712184672741,-500.0,0.00055068,120]
[321432641,1712184672751,-459.38631985,0.00055068,120]
[321432642,1712184672760,-500.0,0.00055068,120]
[321432643,1712184672770,-2138.23,0.00055068,120]
[321432644,1712184672780,-558.23,0.00055068,120]
[321432645,1712184672789,-500.0,0.00055068,120]
[321432646,1712184672799,-3123.66,0.00055068,120]
[321432647,1712184672809,-500.0,0.00055068,120]
[321432648,1712184672818,-1132.89,0.00055068,120]
[321432649,1712184672828,-500.0,0.00055068,120]
[321432650,1712184672839,-6477.8,0.00055068,120]
[321432651,1712184672849,-1702.96,0.00055068,120]
[321432652,1712184672859,-1082.06,0.00055068,120]
[321432653,1712184672870,-500.0,0.00055068,120]
[321432654,1712184672880,-500.0,0.00055068,120]
[321432655,1712184672890,-500.0,0.00055068,120]
[321432656,1712184672900,-833.36,0.00055068,120]
[321432657,1712184672910,-586.43,0.00055068,120]
[321432658,1712184672920,-500.28,0.00055068,120]
[321432659,1712184672929,-518.58663951,0.00055068,120]
[321432660,1712184672938,-2171.28,0.00055068,120]
[321432661,1712184672947,-500.0,0.00055068,120]
[321432662,1712184672956,-1856.17,0.00055068,120]
[321432663,1712184672966,-1791.39,0.00055068,120]
[321432664,1712184672975,-500.0,0.00055068,120]
[321432665,1712184672984,-562.39,0.00055068,120]
[321432666,1712184672994,-2259.93,0.00055068,120]
[321432667,1712184673004,-500.0,0.00055068,120]
[321432668,1712184673014,-1074.17,0.00055068,120]
[321432669,1712184673023,-5192.65,0.00055068,120]
[321432670,1712184673032,-5268.95,0.00055068,120]
[321432671,1712184673044,-500.0,0.00055068,120]
[321432672,1712184673053,-1596.27,0.00055068,120]
[321432673,1712184673063,-500.0,0.00055068,120]
[321432674,1712184673072,-500.0,0.00055068,120]
[321432675,1712184673082,-753.5,0.00055068,120]
[321432676,1712184673091,-727.71,0.00055068,120]
[321432677,1712184673100,-3139.95,0.00055068,120]
[321432678,1712184673110,-1315.91,0.00055068,120]
[321432679,1712184673119,-1928.79,0.00055068,120]